fUST/lending_fUST_20260111
["ID","MTS","AMOUNT","RATE_DAILY","PERIOD"]
[401301386,1768119039337,-500.0,0.00010548,2]
[401301387,1768119039346,-369.72,0.00010548,2]
[401301388,1768119039356,-864.0,0.00010578,2]
[401301389,1768119039365,-672.9,0.000106,2]
[401301390,1768119039375,-500.0,0.00010685,2]
[401301391,1768119039384,-500.0,0.00010685,2]
[401301392,1768119039394,-2580.0,0.00010685,2]
[401301393,1768119039403,-500.0,0.00010822,2]
[401301394,1768119039413,-500.0,0.00010822,2]
[401301395,1768119039422,-2580.0,0.00010822,2]
[401301396,1768119039431,-500.0,0.00010822,2]
[401301397,1768119039440,-369.72,0.00010822,2]
[401301398,1768119039450,-500.0,0.00010959,2]
[401301399,1768119039460,-500.0,0.00010959,2]
[401301400,1768119039469,-2580.0,0.00010959,2]
[401301401,1768119039480,-999.0,0.00010959,2]
[401301402,1768119039490,-620.9785477,0.00011096,2]
[401301403,1768119039500,-623.15407208,0.00011096,2]
[401301404,1768119039509,-2580.0,0.00011096,2]
[401301405,1768119039520,-500.0,0.00011096,2]
[401301406,1768119039530,-369.75,0.00011096,2]
[401301407,1768119039540,-250.0,0.00011194,2]
[401301408,1768119039550,-672.9,0.000112,2]
[401301409,1768119039560,-2580.0,0.00011233,2]
[401301410,1768119039569,-2580.0,0.0001137,2]
[401301411,1768119039579,-500.0,0.0001137,2]
[401301412,1768119039589,-151.0,0.000114,2]
[401301413,1768119039600,-151.0,0.000115,2]
[401301414,1768119039610,-2580.0,0.00011507,2]
[401301415,1768119039619,-300.0,0.0001153,2]
[401301416,1768119039629,-1000.0,0.00011636,2]
[401301417,1768119039639,-2580.0,0.00011644,2]
[401301418,1768119039649,-500.0,0.00011644,2]
[401301419,1768119039659,-576.86119352,0.00011692,2]
[401301420,1768119039678,-672.9,0.000117,2]
[401301421,1768119039688,-151.0,0.000117,2]
[401301422,1768119039697,-2580.0,0.00011781,2]
[401301423,1768119039707,-151.0,0.000118,2]
[401301424,1768119039717,-151.0,0.000119,2]
[401301425,1768119039726,-2580.0,0.00011918,2]
[401301426,1768119039736,-500.0,0.00011918,2]
[401301427,1768119039746,-2580.0,0.00012055,2]
[401301428,1768119039756,-151.0,0.000121,2]
[401301429,1768119039766,-2580.0,0.00012192,2]
[401301430,1768119039776,-500.0,0.00012192,2]
[401301431,1768119039786,-672.9,0.000122,2]
[401301432,1768119039796,-151.0,0.000122,2]
[401301433,1768119039806,-151.0,0.000123,2]
[401301434,1768119039815,-2580.0,0.00012329,2]
[401301441,1768119039937,-440.65,0.00012329,2]
[401301443,1768119039946,-367.21,0.00012329,2]
[401301445,1768119039955,-306.0,0.00012329,2]
[401301447,1768119039964,-255.0,0.00012329,2]
[401301449,1768119039973,-212.5,0.00012329,2]
[401301450,1768119039982,-177.09,0.00012329,2]
[401301452,1768119039991,-885.46,0.00012329,2]
[401301453,1768119040001,-1030.96021323,0.00012329,2]
[401301455,1768119040010,-1030.96021323,0.00012329,2]
[401301457,1768119040020,-1030.96021323,0.00012329,2]
[401301459,1768119040029,-1030.96021323,0.00012329,2]
[401301460,1768119040038,-1030.96021323,0.00012329,2]
[401301462,1768119040047,-1030.96021323,0.00012329,2]
[401301464,1768119040056,-1030.96021323,0.00012329,2]
[401301466,1768119040067,-1030.96021323,0.00012329,2]
[401301468,1768119040077,-1030.96021323,0.00012329,2]
[401301470,1768119040086,-1030.96021323,0.00012329,2]
[401301471,1768119040096,-1030.96021323,0.00012329,2]
[401301473,1768119040105,-1030.96021323,0.00012329,2]
[401301475,1768119040114,-1030.96021323,0.00012329,2]
[401301477,1768119040124,-1030.96021323,0.00012329,2]
[401301479,1768119040134,-1030.96021323,0.00012329,2]
[401301481,1768119040143,-1030.96021323,0.00012329,2]
[401301483,1768119040153,-1030.96021323,0.00012329,2]
[401301484,1768119040163,-1030.96021323,0.00012329,2]
[401301486,1768119040173,-1030.96021323,0.00012329,2]
[401301488,1768119040182,-1030.96021323,0.00012329,2]
[401301490,1768119040191,-1030.96021323,0.00012329,2]
[401301492,1768119040201,-1030.96021323,0.00012329,2]
[401301494,1768119040210,-1030.96021323,0.00012329,2]
[401301496,1768119040220,-1030.96021323,0.00012329,2]
[401301498,1768119040229,-1030.96021323,0.00012329,2]
[401301500,1768119040238,-1030.96021323,0.00012329,2]
[401301501,1768119040247,-1030.96021323,0.00012329,2]
[401301503,1768119040257,-1030.96021323,0.00012329,2]
[401301505,1768119040266,-1030.96021323,0.00012329,2]
[401301507,1768119040276,-1030.96021323,0.00012329,2]
[401301509,1768119040285,-1030.96021323,0.00012329,2]
[401301511,1768119040294,-1030.96021323,0.00012329,2]
[401301513,1768119040304,-1030.96021323,0.00012329,2]
[401301514,1768119040313,-1030.96021323,0.00012329,2]
[401301516,1768119040322,-1030.96021323,0.00012329,2]
[401301518,1768119040331,-1030.96021323,0.00012329,2]
[401301520,1768119040341,-1030.96021323,0.00012329,2]
[401301522,1768119040351,-1030.96021323,0.00012329,2]
[401301524,1768119040359,-1030.96021323,0.00012329,2]
[401301526,1768119040368,-1030.96021323,0.00012329,2]
[401301528,1768119040378,-1030.96021323,0.00012329,2]
[401301529,1768119040387,-1030.96021323,0.00012329,2]
[401301531,1768119040397,-1030.96021323,0.00012329,2]
[401301533,1768119040407,-1030.96021323,0.00012329,2]
[401301535,1768119040416,-1030.96021323,0.00012329,2]
[401301537,1768119040429,-1030.96021323,0.00012329,2]
[401301539,1768119040439,-1030.96021323,0.00012329,2]
[401301541,1768119040448,-1030.96021323,0.00012329,2]
[401301543,1768119040457,-1030.96021323,0.00012329,2]
[401301544,1768119040467,-1030.96021323,0.00012329,2]
[401301546,1768119040480,-1030.96021323,0.00012329,2]
[401301548,1768119040490,-1030.96021323,0.00012329,2]
[401301550,1768119040501,-1030.96021323,0.00012329,2]
[401301552,1768119040511,-1030.96021323,0.00012329,2]
[401301554,1768119040521,-1030.96021323,0.00012329,2]
[401301556,1768119040531,-1005.1862079,0.00012329,2]
[401301558,1768119040540,-1005.1862079,0.00012329,2]
[401301560,1768119040550,-1005.1862079,0.00012329,2]
[401301561,1768119040560,-1005.1862079,0.00012329,2]
[401301563,1768119040569,-1005.1862079,0.00012329,2]
[401301565,1768119040579,-1005.1862079,0.00012329,2]
[401301567,1768119040589,-1005.1862079,0.00012329,2]
[401301569,1768119040599,-1005.1862079,0.00012329,2]
[401301571,1768119040609,-1005.1862079,0.00012329,2]
[401301573,1768119040618,-1005.1862079,0.00012329,2]
[401301575,1768119040628,-1005.1862079,0.00012329,2]
[401301577,1768119040638,-1005.1862079,0.00012329,2]
[401301579,1768119040648,-1005.1862079,0.00012329,2]
[401301581,1768119040657,-1005.1862079,0.00012329,2]
[401301583,1768119040667,-1005.1862079,0.00012329,2]
[401301585,1768119040677,-1005.1862079,0.00012329,2]
[401301586,1768119040686,-1005.1862079,0.00012329,2]
[401301588,1768119040696,-1005.1862079,0.00012329,2]
[401301590,1768119040706,-1005.1862079,0.00012329,2]
[401301592,1768119040715,-1005.1862079,0.00012329,2]
[401301594,1768119040725,-1005.1862079,0.00012329,2]
[401301596,1768119040734,-1005.1862079,0.00012329,2]
[401301598,1768119040743,-1005.1862079,0.00012329,2]
[401301600,1768119040753,-1005.1862079,0.00012329,2]
[401301602,1768119040762,-1005.1862079,0.00012329,2]
[401301604,1768119040772,-1005.1862079,0.00012329,2]
[401301605,1768119040782,-1005.1862079,0.00012329,2]
[401301606,1768119040791,-1005.1862079,0.00012329,2]
[401301607,1768119040801,-1005.1862079,0.00012329,2]
[401301608,1768119040810,-1005.1862079,0.00012329,2]
[401301609,1768119040820,-1005.1862079,0.00012329,2]
[401301610,1768119040829,-1005.1862079,0.00012329,2]
[401301611,1768119040839,-1005.1862079,0.00012329,2]
[401301612,1768119040849,-1005.18620785,0.00012329,2]
[401301613,1768119040858,-1005.18620785,0.00012329,2]
[401301614,1768119040869,-1005.18620784,0.00012329,2]
[401301615,1768119040878,-2580.0,0.00012466,2]
[401301616,1768119040887,-500.0,0.00012466,2]
[401301617,1768119040897,-151.0,0.000126,2]
[401301618,1768119040907,-2580.0,0.00012603,2]
[401301619,1768119040917,-672.9,0.000127,2]
[401301620,1768119040927,-2580.0,0.0001274,2]
[401301621,1768119040937,-500.0,0.0001274,2]
[401301622,1768119040947,-1000.0,0.00012799,2]
[401301623,1768119040957,-244.0,0.00012799,2]
[401301624,1768119040968,-151.0,0.000128,2]
[401301625,1768119040978,-2586.82893305,0.00012877,2]
[401301626,1768119040989,-151.0,0.000129,2]
[401301627,1768119040998,-12757.2354021,0.000129,2]
[401301628,1768119041009,-12757.2354021,0.000129,2]
[401301629,1768119041019,-12757.23540207,0.000129,2]
[401301630,1768119041028,-12757.23540207,0.000129,2]
[401301631,1768119041038,-761.14775359,0.00012974,2]
[401301632,1768119041047,-500.0,0.00012999,2]
[401301633,1768119041057,-500.0,0.00012999,2]
[401301634,1768119041066,-500.0,0.00012999,2]
[401301635,1768119041076,-500.0,0.00012999,2]
[401301636,1768119041084,-500.0,0.00012999,2]
[401301637,1768119041093,-154.30171575,0.00012999,2]
[401301638,1768119041103,-500.0,0.00013014,2]
[401301639,1768119041112,-500.0,0.00013136,2]
[401301640,1768119041121,-500.0,0.00013136,2]
[401301641,1768119041131,-500.0,0.00013136,2]
[401301642,1768119041139,-500.0,0.00013136,2]
[401301643,1768119041149,-500.0,0.00013136,2]
[401301644,1768119041158,-201.95802809,0.00013136,2]
[401301645,1768119041168,-151.0,0.000132,2]
[401301646,1768119041177,-672.9,0.000132,2]
[401301647,1768119041186,-500.0,0.00013273,2]
[401301648,1768119041195,-500.0,0.00013273,2]
[401301649,1768119041205,-500.0,0.00013273,2]
[401301650,1768119041215,-500.24269708,0.00013273,2]
[401301651,1768119041224,-500.0,0.00013273,2]
[401301652,1768119041234,-500.0,0.00013273,2]
[401301653,1768119041243,-500.0,0.00013273,2]
[401301654,1768119041253,-500.0,0.00013273,2]
[401301655,1768119041262,-500.0,0.00013273,2]
[401301656,1768119041272,-500.0,0.00013273,2]
[401301657,1768119041281,-500.0,0.00013273,2]
[401301658,1768119041291,-500.0,0.00013273,2]
[401301659,1768119041300,-500.0,0.00013273,2]
[401301660,1768119041310,-500.0,0.00013273,2]
[401301661,1768119041320,-500.0,0.00013273,2]
[401301662,1768119041329,-500.0,0.00013273,2]
[401301663,1768119041338,-500.0,0.00013273,2]
[401301664,1768119041348,-500.0,0.00013273,2]
[401301665,1768119041357,-500.0,0.00013273,2]
[401301666,1768119041366,-500.0,0.00013273,2]
[401301667,1768119041376,-500.0,0.00013273,2]
[401301668,1768119041386,-501.02698451,0.00013273,2]
[401301669,1768119041395,-500.0,0.00013273,2]
[401301670,1768119041406,-500.0,0.00013273,2]
[401301671,1768119041415,-500.0,0.00013273,2]
[401301672,1768119041424,-500.0,0.00013273,2]
[401301673,1768119041434,-500.0,0.00013273,2]
[401301674,1768119041443,-500.0,0.00013273,2]
[401301675,1768119041453,-500.0,0.00013273,2]
[401301676,1768119041463,-501.21467235,0.00013273,2]
[401301677,1768119041473,-500.0,0.00013273,2]
[401301678,1768119041485,-495.22027723,0.00013273,2]
[401301679,1768119041494,-500.0,0.00013273,2]
[401301680,1768119041504,-206.51680322,0.00013273,2]
[401301681,1768119041513,-500.0,0.00013273,2]
[401301682,1768119041522,-500.0,0.00013273,2]
[401301683,1768119041531,-500.0,0.00013273,2]
[401301684,1768119041541,-500.0,0.00013273,2]
[401301685,1768119041550,-500.0,0.00013273,2]
[401301687,1768119041560,-500.0,0.00013273,2]
[401301689,1768119041570,-500.29461734,0.00013273,2]
[401301690,1768119041580,-500.0,0.00013273,2]
[401301692,1768119041589,-500.0,0.00013273,2]
[401301694,1768119041599,-500.0,0.00013273,2]
[401301695,1768119041609,-500.0,0.00013273,2]
[401301696,1768119041618,-500.0,0.00013273,2]
[401301697,1768119041627,-402.502339,0.00013273,2]
[401301699,1768119041636,-500.0,0.00013273,2]
[401301700,1768119041645,-500.0,0.00013273,2]
[401301702,1768119041655,-500.0,0.00013273,2]
[401301703,1768119041664,-223.56062369,0.00013273,2]
[401301704,1768119041674,-500.0,0.00013273,2]
[401301705,1768119041684,-500.0,0.00013273,2]
[401301706,1768119041693,-500.0,0.00013273,2]
[401301707,1768119041703,-500.0,0.00013273,2]
[401301708,1768119041713,-868.98347636,0.00013278,2]
[401301709,1768119041723,-384.00760187,0.00013288,2]
[401301710,1768119041733,-151.0,0.000134,2]
[401301711,1768119041743,-151.0,0.000134,2]
[401301712,1768119041752,-500.0,0.0001341,2]
[401301713,1768119041761,-300.0,0.0001341,2]
[401301714,1768119041771,-500.0,0.0001341,2]
[401301715,1768119041786,-250.0,0.0001341,2]
[401301716,1768119041796,-500.0,0.00013547,2]
[401301717,1768119041805,-500.0,0.00013547,2]
[401301718,1768119041814,-300.0,0.00013673,2]
[401301719,1768119041825,-500.0,0.00013684,2]
[401301720,1768119041835,-500.0,0.00013684,2]
[401301721,1768119041845,-653.21046913,0.00013692,2]
[401301722,1768119041855,-500.0,0.00013698,2]
[401301723,1768119041864,-500.0,0.00013698,2]
[401301724,1768119041873,-500.0,0.00013698,2]
[401301725,1768119041883,-500.0,0.00013698,2]
[401301726,1768119041893,-500.0,0.00013698,2]
[401301727,1768119041902,-500.0,0.00013698,2]
[401301728,1768119041911,-500.0,0.00013698,2]
[401301729,1768119041921,-534.57834013,0.00013698,2]
[401301730,1768119041930,-500.0,0.00013698,2]
[401301731,1768119041940,-500.0,0.00013698,2]
[401301732,1768119041949,-500.0,0.00013698,2]
[401301733,1768119041959,-500.0,0.00013698,2]
[401301734,1768119041968,-500.0,0.00013698,2]
[401301735,1768119041977,-500.0,0.00013698,2]
[401301736,1768119041986,-500.0,0.00013698,2]
[401301737,1768119041996,-500.0,0.00013698,2]
[401301738,1768119042006,-239.37126777,0.00013698,2]
[401301739,1768119042015,-150.1,0.00013699,2]
[401301740,1768119042025,-12011.786733,0.00013699,2]
[401301741,1768119042035,-2096.819629,0.00013699,2]
[401301742,1768119042044,-1000.0,0.00013699,2]
[401301743,1768119042054,-500.0,0.00013699,2]
[401301744,1768119042064,-500.0,0.00013699,2]
[401301745,1768119042074,-500.0,0.00013699,2]
[401301746,1768119042084,-500.0,0.00013699,2]
[401301747,1768119042093,-500.0,0.00013699,2]
[401301748,1768119042103,-252.81793801,0.00013699,2]
[401301749,1768119042112,-500.0,0.00013699,2]
[401301750,1768119042121,-500.0,0.00013699,2]
[401301751,1768119042131,-500.0,0.00013699,2]
[401301752,1768119042140,-500.0,0.00013699,2]
[401301753,1768119042149,-500.93038909,0.00013699,2]
[401301754,1768119042159,-500.0,0.00013699,2]
[401301755,1768119042168,-250.0,0.00013699,2]
[401301756,1768119042178,-500.0,0.00013699,2]
[401301757,1768119042187,-500.0,0.00013699,2]
[401301758,1768119042197,-500.0,0.00013699,2]
[401301759,1768119042206,-500.0,0.00013699,2]
[401301760,1768119042216,-500.31275461,0.00013699,2]
[401301761,1768119042225,-500.0,0.00013699,2]
[401301762,1768119042235,-413.61388111,0.00013699,2]
[401301763,1768119042245,-500.0,0.00013699,2]
[401301764,1768119042254,-500.0,0.00013699,2]
[401301765,1768119042263,-500.0,0.00013699,2]
[401301766,1768119042273,-500.0,0.00013699,2]
[401301767,1768119042283,-504.31837873,0.00013699,2]
[401301768,1768119042292,-500.0,0.00013699,2]
[401301769,1768119042301,-500.0,0.00013699,2]
[401301770,1768119042311,-500.0,0.00013699,2]
[401301771,1768119042320,-611.85295008,0.00013699,2]
[401301772,1768119042422,-500.0,0.00013699,2]
[401301773,1768119042431,-500.0,0.00013699,2]
[401301774,1768119042442,-500.0,0.00013699,2]
[401301775,1768119042451,-252.75899042,0.00013699,2]
[401301776,1768119042460,-159.05967354,0.00013699,2]
[401301777,1768119042470,-500.0,0.00013699,2]
[401301778,1768119042484,-500.0,0.00013699,2]
[401301779,1768119042493,-500.0,0.00013699,2]
[401301780,1768119042503,-500.0,0.00013699,2]
[401301781,1768119042512,-500.0,0.00013699,2]
[401301782,1768119042521,-366.95119537,0.00013699,2]
[401301783,1768119042531,-500.0,0.00013699,2]
[401301784,1768119042540,-500.0,0.00013699,2]
[401301785,1768119042549,-268.13097792,0.00013699,2]
[401301786,1768119042558,-501.32276914,0.00013699,2]
[401301787,1768119042568,-500.0,0.00013699,2]
[401301788,1768119042577,-500.0,0.00013699,2]
[401301789,1768119042586,-345.73139261,0.00013699,2]
[401301790,1768119042596,-500.0,0.00013699,2]
[401301791,1768119042605,-500.0,0.00013699,2]
[401301792,1768119042614,-500.0,0.00013699,2]
[401301793,1768119042624,-441.79967602,0.00013699,2]
[401301794,1768119042634,-500.0,0.00013699,2]
[401301795,1768119042643,-500.0,0.00013699,2]
[401301797,1768119042652,-500.0,0.00013699,2]
[401301798,1768119042662,-500.0,0.00013699,2]
[401301799,1768119042671,-500.0,0.00013699,2]
[401301800,1768119042680,-500.0,0.00013699,2]
[401301801,1768119042690,-500.0,0.00013699,2]
[401301802,1768119042699,-192.77974704,0.00013699,2]
[401301803,1768119042709,-500.0,0.00013699,2]
[401301804,1768119042718,-500.0,0.00013699,2]
[401301805,1768119042727,-500.0,0.00013699,2]
[401301806,1768119042736,-500.0,0.00013699,2]
[401301807,1768119042745,-500.0,0.00013699,2]
[401301808,1768119042754,-500.0,0.00013699,2]
[401301809,1768119042763,-500.0,0.00013699,2]
[401301810,1768119042773,-500.0,0.00013699,2]
[401301811,1768119042782,-500.0,0.00013699,2]
[401301812,1768119042792,-500.0,0.00013699,2]
[401301813,1768119042801,-295.9151759,0.00013699,2]
[401301814,1768119042811,-500.0,0.00013699,2]
[401301815,1768119042820,-500.0,0.00013699,2]
[401301816,1768119042829,-672.9,0.000137,2]
[401301817,1768119042839,-570.28131147,0.00013821,2]
[401301818,1768119042848,-1000.0,0.00013821,2]
[401301819,1768119042857,-501.6206004,0.00013821,2]
[401301820,1768119042866,-178.09775665,0.00013821,2]
[401301821,1768119042875,-1002.2053155,0.00013821,2]
[401301822,1768119042884,-1000.0,0.00013821,2]
[401301823,1768119042894,-1000.0,0.00013821,2]
[401301824,1768119042903,-1000.0,0.00013821,2]
[401301825,1768119042912,-502.34729237,0.00013821,2]
[401301826,1768119042921,-1000.0,0.00013821,2]
[401301827,1768119042930,-1000.0,0.00013821,2]
[401301828,1768119042939,-1000.0,0.00013821,2]
[401301829,1768119042949,-1000.0,0.00013821,2]
[401301830,1768119042958,-1000.0,0.00013821,2]
[401301831,1768119042967,-1000.0,0.00013821,2]
[401301832,1768119042976,-1000.0,0.00013821,2]
[401301833,1768119042985,-1000.0,0.00013821,2]
[401301834,1768119042994,-506.38443798,0.00013821,2]
[401301835,1768119043003,-1046.83647191,0.00013821,2]
[401301836,1768119043013,-1000.0,0.00013821,2]
[401301837,1768119043022,-1000.0,0.00013821,2]
[401301838,1768119043030,-1000.0,0.00013821,2]
[401301839,1768119043039,-1113.91769968,0.00013821,2]
[401301840,1768119043049,-1000.0,0.00013821,2]
[401301841,1768119043058,-1000.0,0.00013821,2]
[401301842,1768119043067,-1000.0,0.00013821,2]
[401301843,1768119043076,-1000.0,0.00013821,2]
[401301844,1768119043085,-1000.0,0.00013821,2]
[401301845,1768119043095,-1000.0,0.00013821,2]
[401301846,1768119043104,-1000.0,0.00013821,2]
[401301847,1768119043113,-1000.0,0.00013821,2]
[401301848,1768119043122,-1000.0,0.00013821,2]
[401301849,1768119043131,-1000.0,0.00013821,2]
[401301850,1768119043140,-1000.0,0.00013821,2]
[401301851,1768119043149,-1000.0,0.00013821,2]
[401301852,1768119043159,-877.75810228,0.00013821,2]
[401301853,1768119043168,-1000.0,0.00013821,2]
[401301854,1768119043177,-973.2526551,0.00013821,2]
[401301855,1768119043186,-1002.56714759,0.00013821,2]
[401301856,1768119043196,-1000.0,0.00013821,2]
[401301857,1768119043205,-1000.0,0.00013821,2]
[401301858,1768119043215,-500.00000003,0.00013821,2]
[401301859,1768119043224,-500.0,0.00013821,2]
[401301860,1768119043234,-500.0,0.00013958,2]
[401301861,1768119043243,-151.0,0.00014,2]
[401301862,1768119043252,-3588.20550987,0.00014076,2]
[401301863,1768119043262,-1000.0,0.00014079,2]
[401301864,1768119043272,-492.0,0.00014079,2]
[401301865,1768119043281,-500.0,0.00014095,2]
[401301866,1768119043290,-672.9,0.000142,2]
[401301867,1768119043300,-600.0,0.00014221,2]
[401301868,1768119043309,-500.0,0.00014232,2]
[401301869,1768119043318,-319.8575815,0.00014247,2]
[401301870,1768119043328,-1000.0,0.00014247,2]
[401301871,1768119043337,-1000.0,0.00014247,2]
[401301872,1768119043346,-1001.8641087,0.00014247,2]
[401301873,1768119043355,-1000.0,0.00014247,2]
[401301874,1768119043365,-875.35271766,0.00014247,2]
[401301875,1768119043375,-171.67593478,0.00014247,2]
[401301876,1768119043384,-1000.0,0.00014247,2]
[401301877,1768119043394,-1000.0,0.00014247,2]
[401301878,1768119043403,-1000.0,0.00014247,2]
[401301879,1768119043413,-1000.0,0.00014247,2]
[401301880,1768119043422,-1000.0,0.00014247,2]
[401301881,1768119043431,-1000.0,0.00014247,2]
[401301882,1768119043440,-1000.0,0.00014247,2]
[401301883,1768119043449,-1000.0,0.00014247,2]
[401301884,1768119043459,-1000.0,0.00014247,2]
[401301885,1768119043468,-1000.0,0.00014247,2]
[401301886,1768119043480,-1000.0,0.00014247,2]
[401301887,1768119043489,-1000.0,0.00014247,2]
[401301888,1768119043499,-1002.38932755,0.00014247,2]
[401301889,1768119043508,-469.53593685,0.00014247,2]
[401301890,1768119043518,-661.478767,0.00014247,2]
[401301891,1768119043527,-1000.0,0.00014247,2]
[401301892,1768119043537,-1000.0,0.00014247,2]
[401301893,1768119043546,-1029.61129365,0.00014247,2]
[401301894,1768119043556,-1000.0,0.00014247,2]
[401301895,1768119043566,-1000.0,0.00014247,2]
[401301896,1768119043575,-505.42705469,0.00014247,2]
[401301897,1768119043584,-1000.0,0.00014247,2]
[401301898,1768119043594,-1000.0,0.00014247,2]
[401301899,1768119043603,-1000.0,0.00014247,2]
[401301900,1768119043613,-638.41119879,0.00014247,2]
[401301901,1768119043622,-500.0,0.00014247,2]
[401301902,1768119043633,-1000.0,0.00014247,2]
[401301903,1768119043642,-1000.0,0.00014247,2]
[401301904,1768119043653,-500.0,0.00014247,2]
[401301905,1768119043663,-1000.0,0.00014247,2]
[401301906,1768119043672,-1000.0,0.00014247,2]
[401301907,1768119043682,-1000.0,0.00014247,2]
[401301908,1768119043691,-1000.0,0.00014247,2]
[401301909,1768119043700,-1000.0,0.00014247,2]
[401301910,1768119043711,-283.3787305,0.00014247,2]
[401301911,1768119043722,-1003.14554213,0.00014247,2]
[401301912,1768119043731,-1000.0,0.00014247,2]
[401301913,1768119043741,-1000.62599215,0.00014247,2]
[401301914,1768119043750,-1000.0,0.00014247,2]
[401301915,1768119043759,-443.77041137,0.00014247,2]
[401301916,1768119043768,-1000.0,0.00014247,2]
[401301917,1768119043777,-1000.0,0.00014247,2]
[401301918,1768119043786,-1000.0,0.00014247,2]
[401301919,1768119043795,-1000.0,0.00014247,2]
[401301920,1768119043804,-1000.0,0.00014247,2]
[401301921,1768119043814,-1500.0,0.00014368,2]
[401301922,1768119043825,-793.78310386,0.00014368,2]
[401301923,1768119043835,-554.02767991,0.00014368,2]
[401301924,1768119043845,-1500.0,0.00014368,2]
[401301925,1768119043854,-1512.80470062,0.00014368,2]
[401301926,1768119043862,-323.03430659,0.00014368,2]
[401301927,1768119043871,-1500.0,0.00014368,2]
[401301928,1768119043881,-1500.0,0.00014368,2]
[401301929,1768119043891,-263.96834089,0.00014368,2]
[401301930,1768119043907,-500.80134157,0.00014368,2]
[401301931,1768119043918,-1500.0,0.00014368,2]
[401301932,1768119043928,-1500.0,0.00014368,2]
[401301933,1768119043938,-1500.0,0.00014368,2]
[401301934,1768119043948,-1500.0,0.00014368,2]
[401301935,1768119043960,-168.36851892,0.00014368,2]
[401301936,1768119043970,-1500.0,0.00014368,2]
[401301937,1768119043981,-223.48736773,0.00014368,2]
[401301938,1768119043991,-1500.0,0.00014368,2]
[401301939,1768119044002,-1500.0,0.00014368,2]
[401301940,1768119044012,-1500.0,0.00014368,2]
[401301941,1768119044022,-1500.0,0.00014368,2]
[401301942,1768119044033,-1500.0,0.00014368,2]
[401301943,1768119044044,-1500.0,0.00014368,2]
[401301944,1768119044053,-500.0,0.00014368,2]
[401301945,1768119044063,-1500.0,0.00014368,2]
[401301946,1768119044072,-1500.0,0.00014368,2]
[401301947,1768119044082,-1500.0,0.00014368,2]
[401301948,1768119044091,-500.0,0.00014369,2]
[401301949,1768119044100,-500.0,0.00014506,2]
[401301950,1768119044110,-5000.0,0.0001451,2]
[401301951,1768119044119,-151.0,0.000146,2]
[401301952,1768119044128,-500.0,0.00014643,2]
[401301953,1768119044140,-672.9,0.000147,2]
[401301954,1768119044152,-100000.0,0.00014736,2]
[401301955,1768119044161,-900.0,0.00014768,2]
[401301956,1768119044170,-500.0,0.0001478,2]
[401301957,1768119044181,-1500.0,0.00014795,2]
[401301958,1768119044190,-1500.0,0.00014795,2]
[401301959,1768119044201,-1640.95571878,0.00014795,2]
[401301960,1768119044211,-155.09397851,0.00014795,2]
[401301961,1768119044220,-1514.12213244,0.00014795,2]
[401301962,1768119044230,-1500.0,0.00014795,2]
[401301963,1768119044241,-674.14847626,0.00014795,2]
[401301964,1768119044250,-501.33075681,0.00014795,2]
[401301965,1768119044261,-488.64589349,0.00014795,2]
[401301966,1768119044271,-1640.84533084,0.00014795,2]
[401301967,1768119044281,-1236.28209818,0.00014795,2]
[401301968,1768119044290,-1001.3782102,0.00014795,2]
[401301969,1768119044300,-1000.0,0.00014795,2]
[401301970,1768119044310,-1500.0,0.00014795,2]
[401301971,1768119044319,-602.53259662,0.00014795,2]
[401301972,1768119044329,-839.58703801,0.00014795,2]
[401301973,1768119044339,-503.75899236,0.00014795,2]
[401301974,1768119044348,-500.76011771,0.00014795,2]